Workbook

Sheet Biudžeto suvest. nuo metų prad.
A2: Tikrojo 2005 metų biudžeto palyginimas su planuojamu
A4: Didžiosios knygos kodas | B4: Sąskaitos pavadinimas | C4: Tikrasis | D4: Biudžetas | E4: Liko Lt | F4: Liko %
A6: 1000 | B6: Reklama | C6: ='Mėnesio išlaidų suvestinė'!O6 -> 75,075.00 Lt | D6: 100,000.00 Lt | E6: =SUM(+D6-C6) -> 24,925.00 Lt | F6: =SUM(E6/D6) -> 24.93%
A8: 2000 | B8: Biuro įranga | C8: ='Mėnesio išlaidų suvestinė'!O8 -> 0.00 Lt | D8: 100,000.00 Lt | E8: =SUM(+D8-C8) -> 100,000.00 Lt | F8: =SUM(E8/D8) -> 100.00%
A10: 3000 | B10: Spausdintuvai | C10: ='Mėnesio išlaidų suvestinė'!O10 -> 0.00 Lt | D10: 100,000.00 Lt | E10: =SUM(+D10-C10) -> 100,000.00 Lt | F10: =SUM(E10/D10) -> 100.00%
A12: 4000 | B12: Išlaidos serveriams | C12: ='Mėnesio išlaidų suvestinė'!O12 -> 0.00 Lt | D12: 100,000.00 Lt | E12: =SUM(+D12-C12) -> 100,000.00 Lt | F12: =SUM(E12/D12) -> 100.00%
A14: 5000 | B14: Medžiagos | C14: ='Mėnesio išlaidų suvestinė'!O14 -> 0.00 Lt | D14: 50,000.00 Lt | E14: =SUM(+D14-C14) -> 50,000.00 Lt | F14: =SUM(E14/D14) -> 100.00%
A16: 6000 | B16: Klientų išlaidos | C16: ='Mėnesio išlaidų suvestinė'!O16 -> 0.00 Lt | D16: 25,000.00 Lt | E16: =SUM(+D16-C16) -> 25,000.00 Lt | F16: =SUM(E16/D16) -> 100.00%
A18: 7000 | B18: Kompiuteriai | C18: ='Mėnesio išlaidų suvestinė'!O18 -> 2,500.00 Lt | D18: 75,000.00 Lt | E18: =SUM(+D18-C18) -> 72,500.00 Lt | F18: =SUM(E18/D18) -> 96.67%
A20: 8000 | B20: Medicinos planas | C20: ='Mėnesio išlaidų suvestinė'!O20 -> 0.00 Lt | D20: 65,000.00 Lt | E20: =SUM(+D20-C20) -> 65,000.00 Lt | F20: =SUM(E20/D20) -> 100.00%
A22: 9000 | B22: Statybų išlaidos | C22: ='Mėnesio išlaidų suvestinė'!O22 -> 0.00 Lt | D22: 125,000.00 Lt | E22: =SUM(+D22-C22) -> 125,000.00 Lt | F22: =SUM(E22/D22) -> 100.00%
A24: 10000 | B24: Prekyba | C24: ='Mėnesio išlaidų suvestinė'!O24 -> 0.00 Lt | D24: 100,000.00 Lt | E24: =SUM(+D24-C24) -> 100,000.00 Lt | F24: =SUM(E24/D24) -> 100.00%
A26: 11000 | B26: Labdaros išlaidos | C26: ='Mėnesio išlaidų suvestinė'!O26 -> 2,500.00 Lt | D26: 250,000.00 Lt | E26: =SUM(+D26-C26) -> 247,500.00 Lt | F26: =SUM(E26/D26) -> 99.00%
A28: 12000 | B28: Rėmimo išlaidos | C28: ='Mėnesio išlaidų suvestinė'!O28 -> 1,000.00 Lt | D28: 50,000.00 Lt | E28: =SUM(+D28-C28) -> 49,000.00 Lt | F28: =SUM(E28/D28) -> 98.00%
B30: IŠ VISO | C30: =SUM(C6:C28) -> 81,075.00 Lt | D30: =SUM(D6:D28) -> 1,140,000.00 Lt | E30: =SUM(E6:E28) -> 1,058,925.00 Lt | F30: =SUM(E30/D30) -> 92.89%

Sheet Mėnesio išlaidų suvestinė
A2: 2005 m. mėnesių išlaidos
A4: Didžiosios knygos kodas | B4: Sąskaitos pavadinimas | C4: 2005-01-01 | D4: 2005-02-01 | E4: 2005-03-01 | F4: 2005-04-01 | G4: 2005-05-01 | H4: 2005-06-01 | I4: 2005-07-01 | J4: 2005-08-01 | K4: 2005-09-01 | L4: 2005-10-01 | M4: 2005-11-01 | N4: 2005-12-01 | O4: 2005
A6: 1000 | B6: Reklama | C6: =SUMIF('Labdaros ir paramos išlaidos'!$L:$L,"="&($A6&TEXT(C$4,"yy-mmm")),'Labdaros ir paramos išlaidos'!$D:$D)+SUMIF('Išlaidos pagal prekes'!$J:$J,"="&($A6&TEXT(C$4,"yy-mmm")),'Išlaidos pagal prekes'!$E:$E) -> 75,075.00 Lt | D6: =SUMIF('Labdaros ir paramos išlaidos'!$L:$L,"="&($A6&TEXT(D$4,"yy-mmm")),'Labdaros ir paramos išlaidos'!$D:$D)+SUMIF('Išlaidos pagal prekes'!$J:$J,"="&($A6&TEXT(D$4,"yy-mmm")),'Išlaidos pagal prekes'!$E:$E) -> 0.00 Lt | E6: =SUMIF('Labdaros ir paramos išlaidos'!$L:$L,"="&($A6&TEXT(E$4,"yy-mmm")),'Labdaros ir paramos išlaidos'!$D:$D)+SUMIF('Išlaidos pagal prekes'!$J:$J,"="&($A6&TEXT(E$4,"yy-mmm")),'Išlaidos pagal prekes'!$E:$E) -> 0.00 Lt | F6: =SUMIF('Labdaros ir paramos išlaidos'!$L:$L,"="&($A6&TEXT(F$4,"yy-mmm")),'Labdaros ir paramos išlaidos'!$D:$D)+SUMIF('Išlaidos pagal prekes'!$J:$J,"="&($A6&TEXT(F$4,"yy-mmm")),'Išlaidos pagal prekes'!$E:$E) -> 0.00 Lt | G6: =SUMIF('Labdaros ir paramos išlaidos'!$L:$L,"="&($A6&TEXT(G$4,"yy-mmm")),'Labdaros ir paramos išlaidos'!$D:$D)+SUMIF('Išlaidos pagal prekes'!$J:$J,"="&($A6&TEXT(G$4,"yy-mmm")),'Išlaidos pagal prekes'!$E:$E) -> 0.00 Lt | H6: =SUMIF('Labdaros ir paramos išlaidos'!$L:$L,"="&($A6&TEXT(H$4,"yy-mmm")),'Labdaros ir paramos išlaidos'!$D:$D)+SUMIF('Išlaidos pagal prekes'!$J:$J,"="&($A6&TEXT(H$4,"yy-mmm")),'Išlaidos pagal prekes'!$E:$E) -> 0.00 Lt | I6: =SUMIF('Labdaros ir paramos išlaidos'!$L:$L,"="&($A6&TEXT(I$4,"yy-mmm")),'Labdaros ir paramos išlaidos'!$D:$D)+SUMIF('Išlaidos pagal prekes'!$J:$J,"="&($A6&TEXT(I$4,"yy-mmm")),'Išlaidos pagal prekes'!$E:$E) -> 0.00 Lt | J6: =SUMIF('Labdaros ir paramos išlaidos'!$L:$L,"="&($A6&TEXT(J$4,"yy-mmm")),'Labdaros ir paramos išlaidos'!$D:$D)+SUMIF('Išlaidos pagal prekes'!$J:$J,"="&($A6&TEXT(J$4,"yy-mmm")),'Išlaidos pagal prekes'!$E:$E) -> 0.00 Lt | K6: =SUMIF('Labdaros ir paramos išlaidos'!$L:$L,"="&($A6&TEXT(K$4,"yy-mmm")),'Labdaros ir paramos išlaidos'!$D:$D)+SUMIF('Išlaidos pagal prekes'!$J:$J,"="&($A6&TEXT(K$4,"yy-mmm")),'Išlaidos pagal prekes'!$E:$E) -> 0.00 Lt | L6: =SUMIF('Labdaros ir paramos išlaidos'!$L:$L,"="&($A6&TEXT(L$4,"yy-mmm")),'Labdaros ir paramos išlaidos'!$D:$D)+SUMIF('Išlaidos pagal prekes'!$J:$J,"="&($A6&TEXT(L$4,"yy-mmm")),'Išlaidos pagal prekes'!$E:$E) -> 0.00 Lt | M6: =SUMIF('Labdaros ir paramos išlaidos'!$L:$L,"="&($A6&TEXT(M$4,"yy-mmm")),'Labdaros ir paramos išlaidos'!$D:$D)+SUMIF('Išlaidos pagal prekes'!$J:$J,"="&($A6&TEXT(M$4,"yy-mmm")),'Išlaidos pagal prekes'!$E:$E) -> 0.00 Lt | N6: =SUMIF('Labdaros ir paramos išlaidos'!$L:$L,"="&($A6&TEXT(N$4,"yy-mmm")),'Labdaros ir paramos išlaidos'!$D:$D)+SUMIF('Išlaidos pagal prekes'!$J:$J,"="&($A6&TEXT(N$4,"yy-mmm")),'Išlaidos pagal prekes'!$E:$E) -> 0.00 Lt | O6: =SUM(C6:N6) -> 75,075.00 Lt
A8: 2000 | B8: Biuro įranga | C8: =SUMIF('Labdaros ir paramos išlaidos'!$L:$L,"="&($A8&TEXT(C$4,"yy-mmm")),'Labdaros ir paramos išlaidos'!$D:$D)+SUMIF('Išlaidos pagal prekes'!$J:$J,"="&($A8&TEXT(C$4,"yy-mmm")),'Išlaidos pagal prekes'!$E:$E) -> 0.00 Lt | D8: =SUMIF('Labdaros ir paramos išlaidos'!$L:$L,"="&($A8&TEXT(D$4,"yy-mmm")),'Labdaros ir paramos išlaidos'!$D:$D)+SUMIF('Išlaidos pagal prekes'!$J:$J,"="&($A8&TEXT(D$4,"yy-mmm")),'Išlaidos pagal prekes'!$E:$E) -> 0.00 Lt | E8: =SUMIF('Labdaros ir paramos išlaidos'!$L:$L,"="&($A8&TEXT(E$4,"yy-mmm")),'Labdaros ir paramos išlaidos'!$D:$D)+SUMIF('Išlaidos pagal prekes'!$J:$J,"="&($A8&TEXT(E$4,"yy-mmm")),'Išlaidos pagal prekes'!$E:$E) -> 0.00 Lt | F8: =SUMIF('Labdaros ir paramos išlaidos'!$L:$L,"="&($A8&TEXT(F$4,"yy-mmm")),'Labdaros ir paramos išlaidos'!$D:$D)+SUMIF('Išlaidos pagal prekes'!$J:$J,"="&($A8&TEXT(F$4,"yy-mmm")),'Išlaidos pagal prekes'!$E:$E) -> 0.00 Lt | G8: =SUMIF('Labdaros ir paramos išlaidos'!$L:$L,"="&($A8&TEXT(G$4,"yy-mmm")),'Labdaros ir paramos išlaidos'!$D:$D)+SUMIF('Išlaidos pagal prekes'!$J:$J,"="&($A8&TEXT(G$4,"yy-mmm")),'Išlaidos pagal prekes'!$E:$E) -> 0.00 Lt | H8: =SUMIF('Labdaros ir paramos išlaidos'!$L:$L,"="&($A8&TEXT(H$4,"yy-mmm")),'Labdaros ir paramos išlaidos'!$D:$D)+SUMIF('Išlaidos pagal prekes'!$J:$J,"="&($A8&TEXT(H$4,"yy-mmm")),'Išlaidos pagal prekes'!$E:$E) -> 0.00 Lt | I8: =SUMIF('Labdaros ir paramos išlaidos'!$L:$L,"="&($A8&TEXT(I$4,"yy-mmm")),'Labdaros ir paramos išlaidos'!$D:$D)+SUMIF('Išlaidos pagal prekes'!$J:$J,"="&($A8&TEXT(I$4,"yy-mmm")),'Išlaidos pagal prekes'!$E:$E) -> 0.00 Lt | J8: =SUMIF('Labdaros ir paramos išlaidos'!$L:$L,"="&($A8&TEXT(J$4,"yy-mmm")),'Labdaros ir paramos išlaidos'!$D:$D)+SUMIF('Išlaidos pagal prekes'!$J:$J,"="&($A8&TEXT(J$4,"yy-mmm")),'Išlaidos pagal prekes'!$E:$E) -> 0.00 Lt | K8: =SUMIF('Labdaros ir paramos išlaidos'!$L:$L,"="&($A8&TEXT(K$4,"yy-mmm")),'Labdaros ir paramos išlaidos'!$D:$D)+SUMIF('Išlaidos pagal prekes'!$J:$J,"="&($A8&TEXT(K$4,"yy-mmm")),'Išlaidos pagal prekes'!$E:$E) -> 0.00 Lt | L8: =SUMIF('Labdaros ir paramos išlaidos'!$L:$L,"="&($A8&TEXT(L$4,"yy-mmm")),'Labdaros ir paramos išlaidos'!$D:$D)+SUMIF('Išlaidos pagal prekes'!$J:$J,"="&($A8&TEXT(L$4,"yy-mmm")),'Išlaidos pagal prekes'!$E:$E) -> 0.00 Lt | M8: =SUMIF('Labdaros ir paramos išlaidos'!$L:$L,"="&($A8&TEXT(M$4,"yy-mmm")),'Labdaros ir paramos išlaidos'!$D:$D)+SUMIF('Išlaidos pagal prekes'!$J:$J,"="&($A8&TEXT(M$4,"yy-mmm")),'Išlaidos pagal prekes'!$E:$E) -> 0.00 Lt | N8: =SUMIF('Labdaros ir paramos išlaidos'!$L:$L,"="&($A8&TEXT(N$4,"yy-mmm")),'Labdaros ir paramos išlaidos'!$D:$D)+SUMIF('Išlaidos pagal prekes'!$J:$J,"="&($A8&TEXT(N$4,"yy-mmm")),'Išlaidos pagal prekes'!$E:$E) -> 0.00 Lt | O8: =SUM(C8:N8) -> 0.00 Lt
A10: 3000 | B10: Spausdintuvai | C10: =SUMIF('Labdaros ir paramos išlaidos'!$L:$L,"="&($A10&TEXT(C$4,"yy-mmm")),'Labdaros ir paramos išlaidos'!$D:$D)+SUMIF('Išlaidos pagal prekes'!$J:$J,"="&($A10&TEXT(C$4,"yy-mmm")),'Išlaidos pagal prekes'!$E:$E) -> 0.00 Lt | D10: =SUMIF('Labdaros ir paramos išlaidos'!$L:$L,"="&($A10&TEXT(D$4,"yy-mmm")),'Labdaros ir paramos išlaidos'!$D:$D)+SUMIF('Išlaidos pagal prekes'!$J:$J,"="&($A10&TEXT(D$4,"yy-mmm")),'Išlaidos pagal prekes'!$E:$E) -> 0.00 Lt | E10: =SUMIF('Labdaros ir paramos išlaidos'!$L:$L,"="&($A10&TEXT(E$4,"yy-mmm")),'Labdaros ir paramos išlaidos'!$D:$D)+SUMIF('Išlaidos pagal prekes'!$J:$J,"="&($A10&TEXT(E$4,"yy-mmm")),'Išlaidos pagal prekes'!$E:$E) -> 0.00 Lt | F10: =SUMIF('Labdaros ir paramos išlaidos'!$L:$L,"="&($A10&TEXT(F$4,"yy-mmm")),'Labdaros ir paramos išlaidos'!$D:$D)+SUMIF('Išlaidos pagal prekes'!$J:$J,"="&($A10&TEXT(F$4,"yy-mmm")),'Išlaidos pagal prekes'!$E:$E) -> 0.00 Lt | G10: =SUMIF('Labdaros ir paramos išlaidos'!$L:$L,"="&($A10&TEXT(G$4,"yy-mmm")),'Labdaros ir paramos išlaidos'!$D:$D)+SUMIF('Išlaidos pagal prekes'!$J:$J,"="&($A10&TEXT(G$4,"yy-mmm")),'Išlaidos pagal prekes'!$E:$E) -> 0.00 Lt | H10: =SUMIF('Labdaros ir paramos išlaidos'!$L:$L,"="&($A10&TEXT(H$4,"yy-mmm")),'Labdaros ir paramos išlaidos'!$D:$D)+SUMIF('Išlaidos pagal prekes'!$J:$J,"="&($A10&TEXT(H$4,"yy-mmm")),'Išlaidos pagal prekes'!$E:$E) -> 0.00 Lt | I10: =SUMIF('Labdaros ir paramos išlaidos'!$L:$L,"="&($A10&TEXT(I$4,"yy-mmm")),'Labdaros ir paramos išlaidos'!$D:$D)+SUMIF('Išlaidos pagal prekes'!$J:$J,"="&($A10&TEXT(I$4,"yy-mmm")),'Išlaidos pagal prekes'!$E:$E) -> 0.00 Lt | J10: =SUMIF('Labdaros ir paramos išlaidos'!$L:$L,"="&($A10&TEXT(J$4,"yy-mmm")),'Labdaros ir paramos išlaidos'!$D:$D)+SUMIF('Išlaidos pagal prekes'!$J:$J,"="&($A10&TEXT(J$4,"yy-mmm")),'Išlaidos pagal prekes'!$E:$E) -> 0.00 Lt | K10: =SUMIF('Labdaros ir paramos išlaidos'!$L:$L,"="&($A10&TEXT(K$4,"yy-mmm")),'Labdaros ir paramos išlaidos'!$D:$D)+SUMIF('Išlaidos pagal prekes'!$J:$J,"="&($A10&TEXT(K$4,"yy-mmm")),'Išlaidos pagal prekes'!$E:$E) -> 0.00 Lt | L10: =SUMIF('Labdaros ir paramos išlaidos'!$L:$L,"="&($A10&TEXT(L$4,"yy-mmm")),'Labdaros ir paramos išlaidos'!$D:$D)+SUMIF('Išlaidos pagal prekes'!$J:$J,"="&($A10&TEXT(L$4,"yy-mmm")),'Išlaidos pagal prekes'!$E:$E) -> 0.00 Lt | M10: =SUMIF('Labdaros ir paramos išlaidos'!$L:$L,"="&($A10&TEXT(M$4,"yy-mmm")),'Labdaros ir paramos išlaidos'!$D:$D)+SUMIF('Išlaidos pagal prekes'!$J:$J,"="&($A10&TEXT(M$4,"yy-mmm")),'Išlaidos pagal prekes'!$E:$E) -> 0.00 Lt | N10: =SUMIF('Labdaros ir paramos išlaidos'!$L:$L,"="&($A10&TEXT(N$4,"yy-mmm")),'Labdaros ir paramos išlaidos'!$D:$D)+SUMIF('Išlaidos pagal prekes'!$J:$J,"="&($A10&TEXT(N$4,"yy-mmm")),'Išlaidos pagal prekes'!$E:$E) -> 0.00 Lt | O10: =SUM(C10:N10) -> 0.00 Lt
A12: 4000 | B12: Išlaidos serveriams | C12: =SUMIF('Labdaros ir paramos išlaidos'!$L:$L,"="&($A12&TEXT(C$4,"yy-mmm")),'Labdaros ir paramos išlaidos'!$D:$D)+SUMIF('Išlaidos pagal prekes'!$J:$J,"="&($A12&TEXT(C$4,"yy-mmm")),'Išlaidos pagal prekes'!$E:$E) -> 0.00 Lt | D12: =SUMIF('Labdaros ir paramos išlaidos'!$L:$L,"="&($A12&TEXT(D$4,"yy-mmm")),'Labdaros ir paramos išlaidos'!$D:$D)+SUMIF('Išlaidos pagal prekes'!$J:$J,"="&($A12&TEXT(D$4,"yy-mmm")),'Išlaidos pagal prekes'!$E:$E) -> 0.00 Lt | E12: =SUMIF('Labdaros ir paramos išlaidos'!$L:$L,"="&($A12&TEXT(E$4,"yy-mmm")),'Labdaros ir paramos išlaidos'!$D:$D)+SUMIF('Išlaidos pagal prekes'!$J:$J,"="&($A12&TEXT(E$4,"yy-mmm")),'Išlaidos pagal prekes'!$E:$E) -> 0.00 Lt | F12: =SUMIF('Labdaros ir paramos išlaidos'!$L:$L,"="&($A12&TEXT(F$4,"yy-mmm")),'Labdaros ir paramos išlaidos'!$D:$D)+SUMIF('Išlaidos pagal prekes'!$J:$J,"="&($A12&TEXT(F$4,"yy-mmm")),'Išlaidos pagal prekes'!$E:$E) -> 0.00 Lt | G12: =SUMIF('Labdaros ir paramos išlaidos'!$L:$L,"="&($A12&TEXT(G$4,"yy-mmm")),'Labdaros ir paramos išlaidos'!$D:$D)+SUMIF('Išlaidos pagal prekes'!$J:$J,"="&($A12&TEXT(G$4,"yy-mmm")),'Išlaidos pagal prekes'!$E:$E) -> 0.00 Lt | H12: =SUMIF('Labdaros ir paramos išlaidos'!$L:$L,"="&($A12&TEXT(H$4,"yy-mmm")),'Labdaros ir paramos išlaidos'!$D:$D)+SUMIF('Išlaidos pagal prekes'!$J:$J,"="&($A12&TEXT(H$4,"yy-mmm")),'Išlaidos pagal prekes'!$E:$E) -> 0.00 Lt | I12: =SUMIF('Labdaros ir paramos išlaidos'!$L:$L,"="&($A12&TEXT(I$4,"yy-mmm")),'Labdaros ir paramos išlaidos'!$D:$D)+SUMIF('Išlaidos pagal prekes'!$J:$J,"="&($A12&TEXT(I$4,"yy-mmm")),'Išlaidos pagal prekes'!$E:$E) -> 0.00 Lt | J12: =SUMIF('Labdaros ir paramos išlaidos'!$L:$L,"="&($A12&TEXT(J$4,"yy-mmm")),'Labdaros ir paramos išlaidos'!$D:$D)+SUMIF('Išlaidos pagal prekes'!$J:$J,"="&($A12&TEXT(J$4,"yy-mmm")),'Išlaidos pagal prekes'!$E:$E) -> 0.00 Lt | K12: =SUMIF('Labdaros ir paramos išlaidos'!$L:$L,"="&($A12&TEXT(K$4,"yy-mmm")),'Labdaros ir paramos išlaidos'!$D:$D)+SUMIF('Išlaidos pagal prekes'!$J:$J,"="&($A12&TEXT(K$4,"yy-mmm")),'Išlaidos pagal prekes'!$E:$E) -> 0.00 Lt | L12: =SUMIF('Labdaros ir paramos išlaidos'!$L:$L,"="&($A12&TEXT(L$4,"yy-mmm")),'Labdaros ir paramos išlaidos'!$D:$D)+SUMIF('Išlaidos pagal prekes'!$J:$J,"="&($A12&TEXT(L$4,"yy-mmm")),'Išlaidos pagal prekes'!$E:$E) -> 0.00 Lt | M12: =SUMIF('Labdaros ir paramos išlaidos'!$L:$L,"="&($A12&TEXT(M$4,"yy-mmm")),'Labdaros ir paramos išlaidos'!$D:$D)+SUMIF('Išlaidos pagal prekes'!$J:$J,"="&($A12&TEXT(M$4,"yy-mmm")),'Išlaidos pagal prekes'!$E:$E) -> 0.00 Lt | N12: =SUMIF('Labdaros ir paramos išlaidos'!$L:$L,"="&($A12&TEXT(N$4,"yy-mmm")),'Labdaros ir paramos išlaidos'!$D:$D)+SUMIF('Išlaidos pagal prekes'!$J:$J,"="&($A12&TEXT(N$4,"yy-mmm")),'Išlaidos pagal prekes'!$E:$E) -> 0.00 Lt | O12: =SUM(C12:N12) -> 0.00 Lt
A14: 5000 | B14: Medžiagos | C14: =SUMIF('Labdaros ir paramos išlaidos'!$L:$L,"="&($A14&TEXT(C$4,"yy-mmm")),'Labdaros ir paramos išlaidos'!$D:$D)+SUMIF('Išlaidos pagal prekes'!$J:$J,"="&($A14&TEXT(C$4,"yy-mmm")),'Išlaidos pagal prekes'!$E:$E) -> 0.00 Lt | D14: =SUMIF('Labdaros ir paramos išlaidos'!$L:$L,"="&($A14&TEXT(D$4,"yy-mmm")),'Labdaros ir paramos išlaidos'!$D:$D)+SUMIF('Išlaidos pagal prekes'!$J:$J,"="&($A14&TEXT(D$4,"yy-mmm")),'Išlaidos pagal prekes'!$E:$E) -> 0.00 Lt | E14: =SUMIF('Labdaros ir paramos išlaidos'!$L:$L,"="&($A14&TEXT(E$4,"yy-mmm")),'Labdaros ir paramos išlaidos'!$D:$D)+SUMIF('Išlaidos pagal prekes'!$J:$J,"="&($A14&TEXT(E$4,"yy-mmm")),'Išlaidos pagal prekes'!$E:$E) -> 0.00 Lt | F14: =SUMIF('Labdaros ir paramos išlaidos'!$L:$L,"="&($A14&TEXT(F$4,"yy-mmm")),'Labdaros ir paramos išlaidos'!$D:$D)+SUMIF('Išlaidos pagal prekes'!$J:$J,"="&($A14&TEXT(F$4,"yy-mmm")),'Išlaidos pagal prekes'!$E:$E) -> 0.00 Lt | G14: =SUMIF('Labdaros ir paramos išlaidos'!$L:$L,"="&($A14&TEXT(G$4,"yy-mmm")),'Labdaros ir paramos išlaidos'!$D:$D)+SUMIF('Išlaidos pagal prekes'!$J:$J,"="&($A14&TEXT(G$4,"yy-mmm")),'Išlaidos pagal prekes'!$E:$E) -> 0.00 Lt | H14: =SUMIF('Labdaros ir paramos išlaidos'!$L:$L,"="&($A14&TEXT(H$4,"yy-mmm")),'Labdaros ir paramos išlaidos'!$D:$D)+SUMIF('Išlaidos pagal prekes'!$J:$J,"="&($A14&TEXT(H$4,"yy-mmm")),'Išlaidos pagal prekes'!$E:$E) -> 0.00 Lt | I14: =SUMIF('Labdaros ir paramos išlaidos'!$L:$L,"="&($A14&TEXT(I$4,"yy-mmm")),'Labdaros ir paramos išlaidos'!$D:$D)+SUMIF('Išlaidos pagal prekes'!$J:$J,"="&($A14&TEXT(I$4,"yy-mmm")),'Išlaidos pagal prekes'!$E:$E) -> 0.00 Lt | J14: =SUMIF('Labdaros ir paramos išlaidos'!$L:$L,"="&($A14&TEXT(J$4,"yy-mmm")),'Labdaros ir paramos išlaidos'!$D:$D)+SUMIF('Išlaidos pagal prekes'!$J:$J,"="&($A14&TEXT(J$4,"yy-mmm")),'Išlaidos pagal prekes'!$E:$E) -> 0.00 Lt | K14: =SUMIF('Labdaros ir paramos išlaidos'!$L:$L,"="&($A14&TEXT(K$4,"yy-mmm")),'Labdaros ir paramos išlaidos'!$D:$D)+SUMIF('Išlaidos pagal prekes'!$J:$J,"="&($A14&TEXT(K$4,"yy-mmm")),'Išlaidos pagal prekes'!$E:$E) -> 0.00 Lt | L14: =SUMIF('Labdaros ir paramos išlaidos'!$L:$L,"="&($A14&TEXT(L$4,"yy-mmm")),'Labdaros ir paramos išlaidos'!$D:$D)+SUMIF('Išlaidos pagal prekes'!$J:$J,"="&($A14&TEXT(L$4,"yy-mmm")),'Išlaidos pagal prekes'!$E:$E) -> 0.00 Lt | M14: =SUMIF('Labdaros ir paramos išlaidos'!$L:$L,"="&($A14&TEXT(M$4,"yy-mmm")),'Labdaros ir paramos išlaidos'!$D:$D)+SUMIF('Išlaidos pagal prekes'!$J:$J,"="&($A14&TEXT(M$4,"yy-mmm")),'Išlaidos pagal prekes'!$E:$E) -> 0.00 Lt | N14: =SUMIF('Labdaros ir paramos išlaidos'!$L:$L,"="&($A14&TEXT(N$4,"yy-mmm")),'Labdaros ir paramos išlaidos'!$D:$D)+SUMIF('Išlaidos pagal prekes'!$J:$J,"="&($A14&TEXT(N$4,"yy-mmm")),'Išlaidos pagal prekes'!$E:$E) -> 0.00 Lt | O14: =SUM(C14:N14) -> 0.00 Lt
A16: 6000 | B16: Klientų išlaidos | C16: =SUMIF('Labdaros ir paramos išlaidos'!$L:$L,"="&($A16&TEXT(C$4,"yy-mmm")),'Labdaros ir paramos išlaidos'!$D:$D)+SUMIF('Išlaidos pagal prekes'!$J:$J,"="&($A16&TEXT(C$4,"yy-mmm")),'Išlaidos pagal prekes'!$E:$E) -> 0.00 Lt | D16: =SUMIF('Labdaros ir paramos išlaidos'!$L:$L,"="&($A16&TEXT(D$4,"yy-mmm")),'Labdaros ir paramos išlaidos'!$D:$D)+SUMIF('Išlaidos pagal prekes'!$J:$J,"="&($A16&TEXT(D$4,"yy-mmm")),'Išlaidos pagal prekes'!$E:$E) -> 0.00 Lt | E16: =SUMIF('Labdaros ir paramos išlaidos'!$L:$L,"="&($A16&TEXT(E$4,"yy-mmm")),'Labdaros ir paramos išlaidos'!$D:$D)+SUMIF('Išlaidos pagal prekes'!$J:$J,"="&($A16&TEXT(E$4,"yy-mmm")),'Išlaidos pagal prekes'!$E:$E) -> 0.00 Lt | F16: =SUMIF('Labdaros ir paramos išlaidos'!$L:$L,"="&($A16&TEXT(F$4,"yy-mmm")),'Labdaros ir paramos išlaidos'!$D:$D)+SUMIF('Išlaidos pagal prekes'!$J:$J,"="&($A16&TEXT(F$4,"yy-mmm")),'Išlaidos pagal prekes'!$E:$E) -> 0.00 Lt | G16: =SUMIF('Labdaros ir paramos išlaidos'!$L:$L,"="&($A16&TEXT(G$4,"yy-mmm")),'Labdaros ir paramos išlaidos'!$D:$D)+SUMIF('Išlaidos pagal prekes'!$J:$J,"="&($A16&TEXT(G$4,"yy-mmm")),'Išlaidos pagal prekes'!$E:$E) -> 0.00 Lt | H16: =SUMIF('Labdaros ir paramos išlaidos'!$L:$L,"="&($A16&TEXT(H$4,"yy-mmm")),'Labdaros ir paramos išlaidos'!$D:$D)+SUMIF('Išlaidos pagal prekes'!$J:$J,"="&($A16&TEXT(H$4,"yy-mmm")),'Išlaidos pagal prekes'!$E:$E) -> 0.00 Lt | I16: =SUMIF('Labdaros ir paramos išlaidos'!$L:$L,"="&($A16&TEXT(I$4,"yy-mmm")),'Labdaros ir paramos išlaidos'!$D:$D)+SUMIF('Išlaidos pagal prekes'!$J:$J,"="&($A16&TEXT(I$4,"yy-mmm")),'Išlaidos pagal prekes'!$E:$E) -> 0.00 Lt | J16: =SUMIF('Labdaros ir paramos išlaidos'!$L:$L,"="&($A16&TEXT(J$4,"yy-mmm")),'Labdaros ir paramos išlaidos'!$D:$D)+SUMIF('Išlaidos pagal prekes'!$J:$J,"="&($A16&TEXT(J$4,"yy-mmm")),'Išlaidos pagal prekes'!$E:$E) -> 0.00 Lt | K16: =SUMIF('Labdaros ir paramos išlaidos'!$L:$L,"="&($A16&TEXT(K$4,"yy-mmm")),'Labdaros ir paramos išlaidos'!$D:$D)+SUMIF('Išlaidos pagal prekes'!$J:$J,"="&($A16&TEXT(K$4,"yy-mmm")),'Išlaidos pagal prekes'!$E:$E) -> 0.00 Lt | L16: =SUMIF('Labdaros ir paramos išlaidos'!$L:$L,"="&($A16&TEXT(L$4,"yy-mmm")),'Labdaros ir paramos išlaidos'!$D:$D)+SUMIF('Išlaidos pagal prekes'!$J:$J,"="&($A16&TEXT(L$4,"yy-mmm")),'Išlaidos pagal prekes'!$E:$E) -> 0.00 Lt | M16: =SUMIF('Labdaros ir paramos išlaidos'!$L:$L,"="&($A16&TEXT(M$4,"yy-mmm")),'Labdaros ir paramos išlaidos'!$D:$D)+SUMIF('Išlaidos pagal prekes'!$J:$J,"="&($A16&TEXT(M$4,"yy-mmm")),'Išlaidos pagal prekes'!$E:$E) -> 0.00 Lt | N16: =SUMIF('Labdaros ir paramos išlaidos'!$L:$L,"="&($A16&TEXT(N$4,"yy-mmm")),'Labdaros ir paramos išlaidos'!$D:$D)+SUMIF('Išlaidos pagal prekes'!$J:$J,"="&($A16&TEXT(N$4,"yy-mmm")),'Išlaidos pagal prekes'!$E:$E) -> 0.00 Lt | O16: =SUM(C16:N16) -> 0.00 Lt
A18: 7000 | B18: Kompiuteriai | C18: =SUMIF('Labdaros ir paramos išlaidos'!$L:$L,"="&($A18&TEXT(C$4,"yy-mmm")),'Labdaros ir paramos išlaidos'!$D:$D)+SUMIF('Išlaidos pagal prekes'!$J:$J,"="&($A18&TEXT(C$4,"yy-mmm")),'Išlaidos pagal prekes'!$E:$E) -> 2,500.00 Lt | D18: =SUMIF('Labdaros ir paramos išlaidos'!$L:$L,"="&($A18&TEXT(D$4,"yy-mmm")),'Labdaros ir paramos išlaidos'!$D:$D)+SUMIF('Išlaidos pagal prekes'!$J:$J,"="&($A18&TEXT(D$4,"yy-mmm")),'Išlaidos pagal prekes'!$E:$E) -> 0.00 Lt | E18: =SUMIF('Labdaros ir paramos išlaidos'!$L:$L,"="&($A18&TEXT(E$4,"yy-mmm")),'Labdaros ir paramos išlaidos'!$D:$D)+SUMIF('Išlaidos pagal prekes'!$J:$J,"="&($A18&TEXT(E$4,"yy-mmm")),'Išlaidos pagal prekes'!$E:$E) -> 0.00 Lt | F18: =SUMIF('Labdaros ir paramos išlaidos'!$L:$L,"="&($A18&TEXT(F$4,"yy-mmm")),'Labdaros ir paramos išlaidos'!$D:$D)+SUMIF('Išlaidos pagal prekes'!$J:$J,"="&($A18&TEXT(F$4,"yy-mmm")),'Išlaidos pagal prekes'!$E:$E) -> 0.00 Lt | G18: =SUMIF('Labdaros ir paramos išlaidos'!$L:$L,"="&($A18&TEXT(G$4,"yy-mmm")),'Labdaros ir paramos išlaidos'!$D:$D)+SUMIF('Išlaidos pagal prekes'!$J:$J,"="&($A18&TEXT(G$4,"yy-mmm")),'Išlaidos pagal prekes'!$E:$E) -> 0.00 Lt | H18: =SUMIF('Labdaros ir paramos išlaidos'!$L:$L,"="&($A18&TEXT(H$4,"yy-mmm")),'Labdaros ir paramos išlaidos'!$D:$D)+SUMIF('Išlaidos pagal prekes'!$J:$J,"="&($A18&TEXT(H$4,"yy-mmm")),'Išlaidos pagal prekes'!$E:$E) -> 0.00 Lt | I18: =SUMIF('Labdaros ir paramos išlaidos'!$L:$L,"="&($A18&TEXT(I$4,"yy-mmm")),'Labdaros ir paramos išlaidos'!$D:$D)+SUMIF('Išlaidos pagal prekes'!$J:$J,"="&($A18&TEXT(I$4,"yy-mmm")),'Išlaidos pagal prekes'!$E:$E) -> 0.00 Lt | J18: =SUMIF('Labdaros ir paramos išlaidos'!$L:$L,"="&($A18&TEXT(J$4,"yy-mmm")),'Labdaros ir paramos išlaidos'!$D:$D)+SUMIF('Išlaidos pagal prekes'!$J:$J,"="&($A18&TEXT(J$4,"yy-mmm")),'Išlaidos pagal prekes'!$E:$E) -> 0.00 Lt | K18: =SUMIF('Labdaros ir paramos išlaidos'!$L:$L,"="&($A18&TEXT(K$4,"yy-mmm")),'Labdaros ir paramos išlaidos'!$D:$D)+SUMIF('Išlaidos pagal prekes'!$J:$J,"="&($A18&TEXT(K$4,"yy-mmm")),'Išlaidos pagal prekes'!$E:$E) -> 0.00 Lt | L18: =SUMIF('Labdaros ir paramos išlaidos'!$L:$L,"="&($A18&TEXT(L$4,"yy-mmm")),'Labdaros ir paramos išlaidos'!$D:$D)+SUMIF('Išlaidos pagal prekes'!$J:$J,"="&($A18&TEXT(L$4,"yy-mmm")),'Išlaidos pagal prekes'!$E:$E) -> 0.00 Lt | M18: =SUMIF('Labdaros ir paramos išlaidos'!$L:$L,"="&($A18&TEXT(M$4,"yy-mmm")),'Labdaros ir paramos išlaidos'!$D:$D)+SUMIF('Išlaidos pagal prekes'!$J:$J,"="&($A18&TEXT(M$4,"yy-mmm")),'Išlaidos pagal prekes'!$E:$E) -> 0.00 Lt | N18: =SUMIF('Labdaros ir paramos išlaidos'!$L:$L,"="&($A18&TEXT(N$4,"yy-mmm")),'Labdaros ir paramos išlaidos'!$D:$D)+SUMIF('Išlaidos pagal prekes'!$J:$J,"="&($A18&TEXT(N$4,"yy-mmm")),'Išlaidos pagal prekes'!$E:$E) -> 0.00 Lt | O18: =SUM(C18:N18) -> 2,500.00 Lt
A20: 8000 | B20: Medicinos planas | C20: =SUMIF('Labdaros ir paramos išlaidos'!$L:$L,"="&($A20&TEXT(C$4,"yy-mmm")),'Labdaros ir paramos išlaidos'!$D:$D)+SUMIF('Išlaidos pagal prekes'!$J:$J,"="&($A20&TEXT(C$4,"yy-mmm")),'Išlaidos pagal prekes'!$E:$E) -> 0.00 Lt | D20: =SUMIF('Labdaros ir paramos išlaidos'!$L:$L,"="&($A20&TEXT(D$4,"yy-mmm")),'Labdaros ir paramos išlaidos'!$D:$D)+SUMIF('Išlaidos pagal prekes'!$J:$J,"="&($A20&TEXT(D$4,"yy-mmm")),'Išlaidos pagal prekes'!$E:$E) -> 0.00 Lt | E20: =SUMIF('Labdaros ir paramos išlaidos'!$L:$L,"="&($A20&TEXT(E$4,"yy-mmm")),'Labdaros ir paramos išlaidos'!$D:$D)+SUMIF('Išlaidos pagal prekes'!$J:$J,"="&($A20&TEXT(E$4,"yy-mmm")),'Išlaidos pagal prekes'!$E:$E) -> 0.00 Lt | F20: =SUMIF('Labdaros ir paramos išlaidos'!$L:$L,"="&($A20&TEXT(F$4,"yy-mmm")),'Labdaros ir paramos išlaidos'!$D:$D)+SUMIF('Išlaidos pagal prekes'!$J:$J,"="&($A20&TEXT(F$4,"yy-mmm")),'Išlaidos pagal prekes'!$E:$E) -> 0.00 Lt | G20: =SUMIF('Labdaros ir paramos išlaidos'!$L:$L,"="&($A20&TEXT(G$4,"yy-mmm")),'Labdaros ir paramos išlaidos'!$D:$D)+SUMIF('Išlaidos pagal prekes'!$J:$J,"="&($A20&TEXT(G$4,"yy-mmm")),'Išlaidos pagal prekes'!$E:$E) -> 0.00 Lt | H20: =SUMIF('Labdaros ir paramos išlaidos'!$L:$L,"="&($A20&TEXT(H$4,"yy-mmm")),'Labdaros ir paramos išlaidos'!$D:$D)+SUMIF('Išlaidos pagal prekes'!$J:$J,"="&($A20&TEXT(H$4,"yy-mmm")),'Išlaidos pagal prekes'!$E:$E) -> 0.00 Lt | I20: =SUMIF('Labdaros ir paramos išlaidos'!$L:$L,"="&($A20&TEXT(I$4,"yy-mmm")),'Labdaros ir paramos išlaidos'!$D:$D)+SUMIF('Išlaidos pagal prekes'!$J:$J,"="&($A20&TEXT(I$4,"yy-mmm")),'Išlaidos pagal prekes'!$E:$E) -> 0.00 Lt | J20: =SUMIF('Labdaros ir paramos išlaidos'!$L:$L,"="&($A20&TEXT(J$4,"yy-mmm")),'Labdaros ir paramos išlaidos'!$D:$D)+SUMIF('Išlaidos pagal prekes'!$J:$J,"="&($A20&TEXT(J$4,"yy-mmm")),'Išlaidos pagal prekes'!$E:$E) -> 0.00 Lt | K20: =SUMIF('Labdaros ir paramos išlaidos'!$L:$L,"="&($A20&TEXT(K$4,"yy-mmm")),'Labdaros ir paramos išlaidos'!$D:$D)+SUMIF('Išlaidos pagal prekes'!$J:$J,"="&($A20&TEXT(K$4,"yy-mmm")),'Išlaidos pagal prekes'!$E:$E) -> 0.00 Lt | L20: =SUMIF('Labdaros ir paramos išlaidos'!$L:$L,"="&($A20&TEXT(L$4,"yy-mmm")),'Labdaros ir paramos išlaidos'!$D:$D)+SUMIF('Išlaidos pagal prekes'!$J:$J,"="&($A20&TEXT(L$4,"yy-mmm")),'Išlaidos pagal prekes'!$E:$E) -> 0.00 Lt | M20: =SUMIF('Labdaros ir paramos išlaidos'!$L:$L,"="&($A20&TEXT(M$4,"yy-mmm")),'Labdaros ir paramos išlaidos'!$D:$D)+SUMIF('Išlaidos pagal prekes'!$J:$J,"="&($A20&TEXT(M$4,"yy-mmm")),'Išlaidos pagal prekes'!$E:$E) -> 0.00 Lt | N20: =SUMIF('Labdaros ir paramos išlaidos'!$L:$L,"="&($A20&TEXT(N$4,"yy-mmm")),'Labdaros ir paramos išlaidos'!$D:$D)+SUMIF('Išlaidos pagal prekes'!$J:$J,"="&($A20&TEXT(N$4,"yy-mmm")),'Išlaidos pagal prekes'!$E:$E) -> 0.00 Lt | O20: =SUM(C20:N20) -> 0.00 Lt
A22: 9000 | B22: Statybų išlaidos | C22: =SUMIF('Labdaros ir paramos išlaidos'!$L:$L,"="&($A22&TEXT(C$4,"yy-mmm")),'Labdaros ir paramos išlaidos'!$D:$D)+SUMIF('Išlaidos pagal prekes'!$J:$J,"="&($A22&TEXT(C$4,"yy-mmm")),'Išlaidos pagal prekes'!$E:$E) -> 0.00 Lt | D22: =SUMIF('Labdaros ir paramos išlaidos'!$L:$L,"="&($A22&TEXT(D$4,"yy-mmm")),'Labdaros ir paramos išlaidos'!$D:$D)+SUMIF('Išlaidos pagal prekes'!$J:$J,"="&($A22&TEXT(D$4,"yy-mmm")),'Išlaidos pagal prekes'!$E:$E) -> 0.00 Lt | E22: =SUMIF('Labdaros ir paramos išlaidos'!$L:$L,"="&($A22&TEXT(E$4,"yy-mmm")),'Labdaros ir paramos išlaidos'!$D:$D)+SUMIF('Išlaidos pagal prekes'!$J:$J,"="&($A22&TEXT(E$4,"yy-mmm")),'Išlaidos pagal prekes'!$E:$E) -> 0.00 Lt | F22: =SUMIF('Labdaros ir paramos išlaidos'!$L:$L,"="&($A22&TEXT(F$4,"yy-mmm")),'Labdaros ir paramos išlaidos'!$D:$D)+SUMIF('Išlaidos pagal prekes'!$J:$J,"="&($A22&TEXT(F$4,"yy-mmm")),'Išlaidos pagal prekes'!$E:$E) -> 0.00 Lt | G22: =SUMIF('Labdaros ir paramos išlaidos'!$L:$L,"="&($A22&TEXT(G$4,"yy-mmm")),'Labdaros ir paramos išlaidos'!$D:$D)+SUMIF('Išlaidos pagal prekes'!$J:$J,"="&($A22&TEXT(G$4,"yy-mmm")),'Išlaidos pagal prekes'!$E:$E) -> 0.00 Lt | H22: =SUMIF('Labdaros ir paramos išlaidos'!$L:$L,"="&($A22&TEXT(H$4,"yy-mmm")),'Labdaros ir paramos išlaidos'!$D:$D)+SUMIF('Išlaidos pagal prekes'!$J:$J,"="&($A22&TEXT(H$4,"yy-mmm")),'Išlaidos pagal prekes'!$E:$E) -> 0.00 Lt | I22: =SUMIF('Labdaros ir paramos išlaidos'!$L:$L,"="&($A22&TEXT(I$4,"yy-mmm")),'Labdaros ir paramos išlaidos'!$D:$D)+SUMIF('Išlaidos pagal prekes'!$J:$J,"="&($A22&TEXT(I$4,"yy-mmm")),'Išlaidos pagal prekes'!$E:$E) -> 0.00 Lt | J22: =SUMIF('Labdaros ir paramos išlaidos'!$L:$L,"="&($A22&TEXT(J$4,"yy-mmm")),'Labdaros ir paramos išlaidos'!$D:$D)+SUMIF('Išlaidos pagal prekes'!$J:$J,"="&($A22&TEXT(J$4,"yy-mmm")),'Išlaidos pagal prekes'!$E:$E) -> 0.00 Lt | K22: =SUMIF('Labdaros ir paramos išlaidos'!$L:$L,"="&($A22&TEXT(K$4,"yy-mmm")),'Labdaros ir paramos išlaidos'!$D:$D)+SUMIF('Išlaidos pagal prekes'!$J:$J,"="&($A22&TEXT(K$4,"yy-mmm")),'Išlaidos pagal prekes'!$E:$E) -> 0.00 Lt | L22: =SUMIF('Labdaros ir paramos išlaidos'!$L:$L,"="&($A22&TEXT(L$4,"yy-mmm")),'Labdaros ir paramos išlaidos'!$D:$D)+SUMIF('Išlaidos pagal prekes'!$J:$J,"="&($A22&TEXT(L$4,"yy-mmm")),'Išlaidos pagal prekes'!$E:$E) -> 0.00 Lt | M22: =SUMIF('Labdaros ir paramos išlaidos'!$L:$L,"="&($A22&TEXT(M$4,"yy-mmm")),'Labdaros ir paramos išlaidos'!$D:$D)+SUMIF('Išlaidos pagal prekes'!$J:$J,"="&($A22&TEXT(M$4,"yy-mmm")),'Išlaidos pagal prekes'!$E:$E) -> 0.00 Lt | N22: =SUMIF('Labdaros ir paramos išlaidos'!$L:$L,"="&($A22&TEXT(N$4,"yy-mmm")),'Labdaros ir paramos išlaidos'!$D:$D)+SUMIF('Išlaidos pagal prekes'!$J:$J,"="&($A22&TEXT(N$4,"yy-mmm")),'Išlaidos pagal prekes'!$E:$E) -> 0.00 Lt | O22: =SUM(C22:N22) -> 0.00 Lt
A24: 10000 | B24: Prekyba | C24: =SUMIF('Labdaros ir paramos išlaidos'!$L:$L,"="&($A24&TEXT(C$4,"yy-mmm")),'Labdaros ir paramos išlaidos'!$D:$D)+SUMIF('Išlaidos pagal prekes'!$J:$J,"="&($A24&TEXT(C$4,"yy-mmm")),'Išlaidos pagal prekes'!$E:$E) -> 0.00 Lt | D24: =SUMIF('Labdaros ir paramos išlaidos'!$L:$L,"="&($A24&TEXT(D$4,"yy-mmm")),'Labdaros ir paramos išlaidos'!$D:$D)+SUMIF('Išlaidos pagal prekes'!$J:$J,"="&($A24&TEXT(D$4,"yy-mmm")),'Išlaidos pagal prekes'!$E:$E) -> 0.00 Lt | E24: =SUMIF('Labdaros ir paramos išlaidos'!$L:$L,"="&($A24&TEXT(E$4,"yy-mmm")),'Labdaros ir paramos išlaidos'!$D:$D)+SUMIF('Išlaidos pagal prekes'!$J:$J,"="&($A24&TEXT(E$4,"yy-mmm")),'Išlaidos pagal prekes'!$E:$E) -> 0.00 Lt | F24: =SUMIF('Labdaros ir paramos išlaidos'!$L:$L,"="&($A24&TEXT(F$4,"yy-mmm")),'Labdaros ir paramos išlaidos'!$D:$D)+SUMIF('Išlaidos pagal prekes'!$J:$J,"="&($A24&TEXT(F$4,"yy-mmm")),'Išlaidos pagal prekes'!$E:$E) -> 0.00 Lt | G24: =SUMIF('Labdaros ir paramos išlaidos'!$L:$L,"="&($A24&TEXT(G$4,"yy-mmm")),'Labdaros ir paramos išlaidos'!$D:$D)+SUMIF('Išlaidos pagal prekes'!$J:$J,"="&($A24&TEXT(G$4,"yy-mmm")),'Išlaidos pagal prekes'!$E:$E) -> 0.00 Lt | H24: =SUMIF('Labdaros ir paramos išlaidos'!$L:$L,"="&($A24&TEXT(H$4,"yy-mmm")),'Labdaros ir paramos išlaidos'!$D:$D)+SUMIF('Išlaidos pagal prekes'!$J:$J,"="&($A24&TEXT(H$4,"yy-mmm")),'Išlaidos pagal prekes'!$E:$E) -> 0.00 Lt | I24: =SUMIF('Labdaros ir paramos išlaidos'!$L:$L,"="&($A24&TEXT(I$4,"yy-mmm")),'Labdaros ir paramos išlaidos'!$D:$D)+SUMIF('Išlaidos pagal prekes'!$J:$J,"="&($A24&TEXT(I$4,"yy-mmm")),'Išlaidos pagal prekes'!$E:$E) -> 0.00 Lt | J24: =SUMIF('Labdaros ir paramos išlaidos'!$L:$L,"="&($A24&TEXT(J$4,"yy-mmm")),'Labdaros ir paramos išlaidos'!$D:$D)+SUMIF('Išlaidos pagal prekes'!$J:$J,"="&($A24&TEXT(J$4,"yy-mmm")),'Išlaidos pagal prekes'!$E:$E) -> 0.00 Lt | K24: =SUMIF('Labdaros ir paramos išlaidos'!$L:$L,"="&($A24&TEXT(K$4,"yy-mmm")),'Labdaros ir paramos išlaidos'!$D:$D)+SUMIF('Išlaidos pagal prekes'!$J:$J,"="&($A24&TEXT(K$4,"yy-mmm")),'Išlaidos pagal prekes'!$E:$E) -> 0.00 Lt | L24: =SUMIF('Labdaros ir paramos išlaidos'!$L:$L,"="&($A24&TEXT(L$4,"yy-mmm")),'Labdaros ir paramos išlaidos'!$D:$D)+SUMIF('Išlaidos pagal prekes'!$J:$J,"="&($A24&TEXT(L$4,"yy-mmm")),'Išlaidos pagal prekes'!$E:$E) -> 0.00 Lt | M24: =SUMIF('Labdaros ir paramos išlaidos'!$L:$L,"="&($A24&TEXT(M$4,"yy-mmm")),'Labdaros ir paramos išlaidos'!$D:$D)+SUMIF('Išlaidos pagal prekes'!$J:$J,"="&($A24&TEXT(M$4,"yy-mmm")),'Išlaidos pagal prekes'!$E:$E) -> 0.00 Lt | N24: =SUMIF('Labdaros ir paramos išlaidos'!$L:$L,"="&($A24&TEXT(N$4,"yy-mmm")),'Labdaros ir paramos išlaidos'!$D:$D)+SUMIF('Išlaidos pagal prekes'!$J:$J,"="&($A24&TEXT(N$4,"yy-mmm")),'Išlaidos pagal prekes'!$E:$E) -> 0.00 Lt | O24: =SUM(C24:N24) -> 0.00 Lt
A26: 11000 | B26: Labdaros išlaidos | C26: =SUMIF('Labdaros ir paramos išlaidos'!$L:$L,"="&($A26&TEXT(C$4,"yy-mmm")),'Labdaros ir paramos išlaidos'!$D:$D)+SUMIF('Išlaidos pagal prekes'!$J:$J,"="&($A26&TEXT(C$4,"yy-mmm")),'Išlaidos pagal prekes'!$E:$E) -> 0.00 Lt | D26: =SUMIF('Labdaros ir paramos išlaidos'!$L:$L,"="&($A26&TEXT(D$4,"yy-mmm")),'Labdaros ir paramos išlaidos'!$D:$D)+SUMIF('Išlaidos pagal prekes'!$J:$J,"="&($A26&TEXT(D$4,"yy-mmm")),'Išlaidos pagal prekes'!$E:$E) -> 2,500.00 Lt | E26: =SUMIF('Labdaros ir paramos išlaidos'!$L:$L,"="&($A26&TEXT(E$4,"yy-mmm")),'Labdaros ir paramos išlaidos'!$D:$D)+SUMIF('Išlaidos pagal prekes'!$J:$J,"="&($A26&TEXT(E$4,"yy-mmm")),'Išlaidos pagal prekes'!$E:$E) -> 0.00 Lt | F26: =SUMIF('Labdaros ir paramos išlaidos'!$L:$L,"="&($A26&TEXT(F$4,"yy-mmm")),'Labdaros ir paramos išlaidos'!$D:$D)+SUMIF('Išlaidos pagal prekes'!$J:$J,"="&($A26&TEXT(F$4,"yy-mmm")),'Išlaidos pagal prekes'!$E:$E) -> 0.00 Lt | G26: =SUMIF('Labdaros ir paramos išlaidos'!$L:$L,"="&($A26&TEXT(G$4,"yy-mmm")),'Labdaros ir paramos išlaidos'!$D:$D)+SUMIF('Išlaidos pagal prekes'!$J:$J,"="&($A26&TEXT(G$4,"yy-mmm")),'Išlaidos pagal prekes'!$E:$E) -> 0.00 Lt | H26: =SUMIF('Labdaros ir paramos išlaidos'!$L:$L,"="&($A26&TEXT(H$4,"yy-mmm")),'Labdaros ir paramos išlaidos'!$D:$D)+SUMIF('Išlaidos pagal prekes'!$J:$J,"="&($A26&TEXT(H$4,"yy-mmm")),'Išlaidos pagal prekes'!$E:$E) -> 0.00 Lt | I26: =SUMIF('Labdaros ir paramos išlaidos'!$L:$L,"="&($A26&TEXT(I$4,"yy-mmm")),'Labdaros ir paramos išlaidos'!$D:$D)+SUMIF('Išlaidos pagal prekes'!$J:$J,"="&($A26&TEXT(I$4,"yy-mmm")),'Išlaidos pagal prekes'!$E:$E) -> 0.00 Lt | J26: =SUMIF('Labdaros ir paramos išlaidos'!$L:$L,"="&($A26&TEXT(J$4,"yy-mmm")),'Labdaros ir paramos išlaidos'!$D:$D)+SUMIF('Išlaidos pagal prekes'!$J:$J,"="&($A26&TEXT(J$4,"yy-mmm")),'Išlaidos pagal prekes'!$E:$E) -> 0.00 Lt | K26: =SUMIF('Labdaros ir paramos išlaidos'!$L:$L,"="&($A26&TEXT(K$4,"yy-mmm")),'Labdaros ir paramos išlaidos'!$D:$D)+SUMIF('Išlaidos pagal prekes'!$J:$J,"="&($A26&TEXT(K$4,"yy-mmm")),'Išlaidos pagal prekes'!$E:$E) -> 0.00 Lt | L26: =SUMIF('Labdaros ir paramos išlaidos'!$L:$L,"="&($A26&TEXT(L$4,"yy-mmm")),'Labdaros ir paramos išlaidos'!$D:$D)+SUMIF('Išlaidos pagal prekes'!$J:$J,"="&($A26&TEXT(L$4,"yy-mmm")),'Išlaidos pagal prekes'!$E:$E) -> 0.00 Lt | M26: =SUMIF('Labdaros ir paramos išlaidos'!$L:$L,"="&($A26&TEXT(M$4,"yy-mmm")),'Labdaros ir paramos išlaidos'!$D:$D)+SUMIF('Išlaidos pagal prekes'!$J:$J,"="&($A26&TEXT(M$4,"yy-mmm")),'Išlaidos pagal prekes'!$E:$E) -> 0.00 Lt | N26: =SUMIF('Labdaros ir paramos išlaidos'!$L:$L,"="&($A26&TEXT(N$4,"yy-mmm")),'Labdaros ir paramos išlaidos'!$D:$D)+SUMIF('Išlaidos pagal prekes'!$J:$J,"="&($A26&TEXT(N$4,"yy-mmm")),'Išlaidos pagal prekes'!$E:$E) -> 0.00 Lt | O26: =SUM(C26:N26) -> 2,500.00 Lt
A28: 12000 | B28: Rėmimo išlaidos | C28: =SUMIF('Labdaros ir paramos išlaidos'!$L:$L,"="&($A28&TEXT(C$4,"yy-mmm")),'Labdaros ir paramos išlaidos'!$D:$D)+SUMIF('Išlaidos pagal prekes'!$J:$J,"="&($A28&TEXT(C$4,"yy-mmm")),'Išlaidos pagal prekes'!$E:$E) -> 1,000.00 Lt | D28: =SUMIF('Labdaros ir paramos išlaidos'!$L:$L,"="&($A28&TEXT(D$4,"yy-mmm")),'Labdaros ir paramos išlaidos'!$D:$D)+SUMIF('Išlaidos pagal prekes'!$J:$J,"="&($A28&TEXT(D$4,"yy-mmm")),'Išlaidos pagal prekes'!$E:$E) -> 0.00 Lt | E28: =SUMIF('Labdaros ir paramos išlaidos'!$L:$L,"="&($A28&TEXT(E$4,"yy-mmm")),'Labdaros ir paramos išlaidos'!$D:$D)+SUMIF('Išlaidos pagal prekes'!$J:$J,"="&($A28&TEXT(E$4,"yy-mmm")),'Išlaidos pagal prekes'!$E:$E) -> 0.00 Lt | F28: =SUMIF('Labdaros ir paramos išlaidos'!$L:$L,"="&($A28&TEXT(F$4,"yy-mmm")),'Labdaros ir paramos išlaidos'!$D:$D)+SUMIF('Išlaidos pagal prekes'!$J:$J,"="&($A28&TEXT(F$4,"yy-mmm")),'Išlaidos pagal prekes'!$E:$E) -> 0.00 Lt | G28: =SUMIF('Labdaros ir paramos išlaidos'!$L:$L,"="&($A28&TEXT(G$4,"yy-mmm")),'Labdaros ir paramos išlaidos'!$D:$D)+SUMIF('Išlaidos pagal prekes'!$J:$J,"="&($A28&TEXT(G$4,"yy-mmm")),'Išlaidos pagal prekes'!$E:$E) -> 0.00 Lt | H28: =SUMIF('Labdaros ir paramos išlaidos'!$L:$L,"="&($A28&TEXT(H$4,"yy-mmm")),'Labdaros ir paramos išlaidos'!$D:$D)+SUMIF('Išlaidos pagal prekes'!$J:$J,"="&($A28&TEXT(H$4,"yy-mmm")),'Išlaidos pagal prekes'!$E:$E) -> 0.00 Lt | I28: =SUMIF('Labdaros ir paramos išlaidos'!$L:$L,"="&($A28&TEXT(I$4,"yy-mmm")),'Labdaros ir paramos išlaidos'!$D:$D)+SUMIF('Išlaidos pagal prekes'!$J:$J,"="&($A28&TEXT(I$4,"yy-mmm")),'Išlaidos pagal prekes'!$E:$E) -> 0.00 Lt | J28: =SUMIF('Labdaros ir paramos išlaidos'!$L:$L,"="&($A28&TEXT(J$4,"yy-mmm")),'Labdaros ir paramos išlaidos'!$D:$D)+SUMIF('Išlaidos pagal prekes'!$J:$J,"="&($A28&TEXT(J$4,"yy-mmm")),'Išlaidos pagal prekes'!$E:$E) -> 0.00 Lt | K28: =SUMIF('Labdaros ir paramos išlaidos'!$L:$L,"="&($A28&TEXT(K$4,"yy-mmm")),'Labdaros ir paramos išlaidos'!$D:$D)+SUMIF('Išlaidos pagal prekes'!$J:$J,"="&($A28&TEXT(K$4,"yy-mmm")),'Išlaidos pagal prekes'!$E:$E) -> 0.00 Lt | L28: =SUMIF('Labdaros ir paramos išlaidos'!$L:$L,"="&($A28&TEXT(L$4,"yy-mmm")),'Labdaros ir paramos išlaidos'!$D:$D)+SUMIF('Išlaidos pagal prekes'!$J:$J,"="&($A28&TEXT(L$4,"yy-mmm")),'Išlaidos pagal prekes'!$E:$E) -> 0.00 Lt | M28: =SUMIF('Labdaros ir paramos išlaidos'!$L:$L,"="&($A28&TEXT(M$4,"yy-mmm")),'Labdaros ir paramos išlaidos'!$D:$D)+SUMIF('Išlaidos pagal prekes'!$J:$J,"="&($A28&TEXT(M$4,"yy-mmm")),'Išlaidos pagal prekes'!$E:$E) -> 0.00 Lt | N28: =SUMIF('Labdaros ir paramos išlaidos'!$L:$L,"="&($A28&TEXT(N$4,"yy-mmm")),'Labdaros ir paramos išlaidos'!$D:$D)+SUMIF('Išlaidos pagal prekes'!$J:$J,"="&($A28&TEXT(N$4,"yy-mmm")),'Išlaidos pagal prekes'!$E:$E) -> 0.00 Lt | O28: =SUM(C28:N28) -> 1,000.00 Lt
B30: Iš viso | C30: =SUM(C6:C28) -> 78,575.00 Lt | D30: 2,500.00 Lt | E30: 0.00 Lt | F30: 0.00 Lt | G30: 0.00 Lt | H30: 0.00 Lt | I30: 0.00 Lt | J30: 0.00 Lt | K30: 0.00 Lt | L30: 0.00 Lt | M30: 0.00 Lt | N30: 0.00 Lt | O30: 81,075.00 Lt

Sheet Išlaidos pagal prekes
A1: Didžiosios knygos kodas | B1: Sąskaitos data | C1: Sąskaitos nr. | D1: Pareikalavo | E1: Čekio suma | F1: Mokėtojas | G1: Čekio naudojimo tikslas | H1: Paskirstymo būdas | I1: Bylos data | J1: Sukurtas rakto laukas
A2: 1000 | B2: 2005-01-01 | C2: 100 | D2: Andy Teal | E2: 75,075.00 Lt | F2: Bendras kurjeris | G2: Paštininkas | H2: Laiškas | I2: 2005-01-04 | J2: =A2&TEXT(B2,"yy-mmm") -> 100005-Jan
A3: 7000 | B3: 2005-01-15 | C3: 101 | D3: Robert Walters | E3: 2,500.00 Lt | F3: Įmonė A. Datum | G3: 2 staliniai kompiuteriai | H3: Kreditas | I3: 2005-01-20 | J3: 700005-Jan
J4: 00-Jan
J5: 00-Jan
J6: 00-Jan
J7: 00-Jan
J8: 00-Jan
J9: 00-Jan
J10: 00-Jan
J11: 00-Jan
J12: 00-Jan
J13: 00-Jan
J14: 00-Jan
J15: 00-Jan
J16: 00-Jan
J17: 00-Jan
J18: 00-Jan
J19: 00-Jan
J20: 00-Jan
J21: 00-Jan
J22: 00-Jan
J23: 00-Jan
J24: 00-Jan
J25: 00-Jan
J26: 00-Jan
J27: 00-Jan
J28: 00-Jan
J29: 00-Jan
J30: 00-Jan
J31: 00-Jan
J32: 00-Jan
J33: 00-Jan
J34: =A34&TEXT(B34,"yy-mmm") -> 00-Jan
J35: 00-Jan
J36: 00-Jan
J37: 00-Jan
J38: 00-Jan
J39: 00-Jan
J40: 00-Jan
J41: 00-Jan
J42: 00-Jan
J43: 00-Jan
J44: 00-Jan
J45: 00-Jan
J46: 00-Jan
J47: 00-Jan
J48: 00-Jan
J49: 00-Jan
J50: 00-Jan
J51: 00-Jan
J52: 00-Jan
J53: 00-Jan
J54: 00-Jan
J55: 00-Jan
J56: 00-Jan
J57: 00-Jan
J58: 00-Jan
J59: 00-Jan
J60: 00-Jan
J61: 00-Jan
J62: 00-Jan
J63: 00-Jan
J64: 00-Jan
J65: 00-Jan
J66: =A66&TEXT(B66,"yy-mmm") -> 00-Jan
J67: 00-Jan
J68: 00-Jan
J69: 00-Jan
J70: 00-Jan
J71: 00-Jan
J72: 00-Jan
J73: 00-Jan
J74: 00-Jan
J75: 00-Jan
J76: 00-Jan
J77: 00-Jan
J78: 00-Jan
J79: 00-Jan
J80: 00-Jan
J81: 00-Jan
J82: 00-Jan
J83: 00-Jan
J84: 00-Jan
J85: 00-Jan
J86: 00-Jan
J87: 00-Jan
J88: 00-Jan
J89: 00-Jan
J90: 00-Jan
J91: 00-Jan
J92: 00-Jan
J93: 00-Jan
J94: 00-Jan
J95: 00-Jan
J96: 00-Jan
J97: 00-Jan
J98: =A98&TEXT(B98,"yy-mmm") -> 00-Jan
J99: 00-Jan
J100: 00-Jan
J101: 00-Jan
J102: 00-Jan
J103: 00-Jan

Sheet Labdaros ir paramos išlaidos
A1: Didžiosios knygos kodas | B1: Pateikta tikrinimo paraiška | C1: Pareikalavo | D1: Čekio suma | E1: Praeitų metų įnašas | F1: Mokėtojas | G1: Kam naudojama | H1: Kas užbaigė | I1: Kategorija | J1: Paskirstymo būdas | K1: Bylos data | L1: Sukurtas rakto laukas
A2: 12000 | B2: 2005-01-20 | C2: Susan W. Eaton | D2: 1,000.00 Lt | E2: 0.00 Lt | F2: Dailės Mokykla | G2: Stipendijos | H2: Kim Ralls | I2: Meno rūšys | J2: Čekis | K2: 2005-01-30 | L2: =A2&TEXT(B2,"yy-mmm") -> 1200005-Jan
A3: 11000 | B3: 2005-02-15 | C3: Susan W. Eaton | D3: 2,500.00 Lt | E3: 0.00 Lt | F3: Wingtip Toys | G3: Bendruomenė | H3: Kathie Flood | I3: Bendruomenė | J3: Čekis | K3: 2005-03-01 | L3: 1100005-Feb
L4: 00-Jan
L5: 00-Jan
L6: 00-Jan
L7: 00-Jan
L8: 00-Jan
L9: 00-Jan
L10: 00-Jan
L11: 00-Jan
L12: 00-Jan
L13: 00-Jan
L14: 00-Jan
L15: 00-Jan
L16: 00-Jan
L17: 00-Jan
L18: 00-Jan
L19: 00-Jan
L20: 00-Jan
L21: 00-Jan
L22: 00-Jan
L23: 00-Jan
L24: 00-Jan
L25: 00-Jan
L26: 00-Jan
L27: 00-Jan
L28: 00-Jan
L29: 00-Jan
L30: 00-Jan
L31: 00-Jan
L32: 00-Jan
L33: 00-Jan
L34: =A34&TEXT(B34,"yy-mmm") -> 00-Jan
L35: 00-Jan
L36: 00-Jan
L37: 00-Jan
L38: 00-Jan
L39: 00-Jan
L40: 00-Jan
L41: 00-Jan
L42: 00-Jan
L43: 00-Jan
L44: 00-Jan
L45: 00-Jan
L46: 00-Jan
L47: 00-Jan
L48: 00-Jan
L49: 00-Jan
L50: 00-Jan
L51: 00-Jan
L52: 00-Jan
L53: 00-Jan
L54: 00-Jan
L55: 00-Jan
L56: 00-Jan
L57: 00-Jan
L58: 00-Jan
L59: 00-Jan
L60: 00-Jan
L61: 00-Jan
L62: 00-Jan
L63: 00-Jan
L64: 00-Jan
L65: 00-Jan
L66: =A66&TEXT(B66,"yy-mmm") -> 00-Jan
L67: 00-Jan
L68: 00-Jan
L69: 00-Jan
L70: 00-Jan
L71: 00-Jan
L72: 00-Jan
L73: 00-Jan
L74: 00-Jan
L75: 00-Jan
L76: 00-Jan
L77: 00-Jan
L78: 00-Jan
L79: 00-Jan
L80: 00-Jan
L81: 00-Jan
L82: 00-Jan
L83: 00-Jan
L84: 00-Jan
L85: 00-Jan
L86: 00-Jan
L87: 00-Jan
L88: 00-Jan
L89: 00-Jan
L90: 00-Jan
L91: 00-Jan
L92: 00-Jan
L93: 00-Jan
L94: 00-Jan
L95: 00-Jan
L96: 00-Jan
L97: 00-Jan
L98: =A98&TEXT(B98,"yy-mmm") -> 00-Jan
L99: 00-Jan
L100: 00-Jan
L101: 00-Jan
L102: 00-Jan
L103: 00-Jan
L104: 00-Jan
L105: 00-Jan
L106: 00-Jan
L107: 00-Jan
L108: 00-Jan
L109: 00-Jan
